fUST/lending_fUST_20260523
["ID","MTS","AMOUNT","RATE_DAILY","PERIOD"]
[422864502,1779544242000,-500.0,9.589e-05,2]
[422864492,1779544242000,-293.6791988,9.441e-05,2]
[422864504,1779544242000,-500.0,9.589e-05,2]
[422864549,1779544243000,-500.0,9.863e-05,2]
[422864538,1779544243000,-179.865143,9.604e-05,2]
[422864553,1779544243000,-500.0,9.863e-05,2]
[422864548,1779544243000,-500.0,9.863e-05,2]
[422864542,1779544243000,-653.57,9.863e-05,2]
[422864544,1779544243000,-500.0,9.863e-05,2]
[422864541,1779544243000,-500.0,9.863e-05,2]
[422864540,1779544243000,-168.3888056,9.743e-05,2]
[422864547,1779544243000,-895.83,9.863e-05,2]
[422864543,1779544243000,-500.0,9.863e-05,2]
[422864537,1779544243000,-169.932571,9.604e-05,2]
[422864536,1779544243000,-160.0,9.604e-05,2]
[422864545,1779544243000,-500.0,9.863e-05,2]
[422864546,1779544243000,-500.0,9.863e-05,2]
[422864535,1779544243000,-500.0,9.589e-05,2]
[422864554,1779544243000,-246.77170686,9.863e-05,2]
[422864539,1779544243000,-2384.24087151,9.611e-05,2]
[422864552,1779544243000,-605.91,9.863e-05,2]
[422864551,1779544243000,-556.89,9.863e-05,2]
[422864578,1779544243000,-2070.0,0.0001,2]
[422864573,1779544243000,-3552.23563412,0.0001,2]
[422864579,1779544243000,-256898.95093702,0.0001,2]
[422864571,1779544243000,-196.076044,9.996e-05,2]
[422864576,1779544243000,-151.38,0.0001,2]
[422864568,1779544243000,-10494.39189438,9.93e-05,2]
[422864566,1779544243000,-500.0,9.863e-05,2]
[422864565,1779544243000,-500.0,9.863e-05,2]
[422864564,1779544243000,-514.42,9.863e-05,2]
[422864570,1779544243000,-4317.74705018,9.934e-05,2]
[422864563,1779544243000,-500.0,9.863e-05,2]
[422864562,1779544243000,-867.31,9.863e-05,2]
[422864559,1779544243000,-746.45,9.863e-05,2]
[422864550,1779544243000,-744.13,9.863e-05,2]
[422864556,1779544243000,-500.0,9.863e-05,2]
[422864560,1779544243000,-500.0,9.863e-05,2]
[422864558,1779544243000,-3688.19,9.863e-05,2]
[422864557,1779544243000,-500.0,9.863e-05,2]
[422864555,1779544243000,-556.32,9.863e-05,2]
[422864561,1779544243000,-500.0,9.863e-05,2]
[422864583,1779544244000,-291.0,8.941e-05,2]
[422864584,1779544244000,-7220.46093215,0.0001,2]
[422864595,1779544247000,-666.248629,0.0001,2]
[422864594,1779544247000,-500.0,8.219e-05,2]
[422864597,1779544374000,-300.0,7.474e-05,2]
[422864598,1779544428000,-500.0,7.475e-05,2]
[422864599,1779544448000,-500.0,7.376e-05,2]
[422864600,1779544468000,-653.57,7.376e-05,2]
[422864601,1779544488000,-500.0,7.376e-05,2]
[422864602,1779544509000,-533.47058913,7.376e-05,2]
[422864603,1779544529000,-500.0,7.375e-05,2]
[422864607,1779544549000,165.749518,3.506e-05,2]
[422864606,1779544549000,-500.0,7.375e-05,2]
[422864608,1779544569000,-200.0,7.375e-05,2]
[422864611,1779544623000,-500.0,7.376e-05,2]
[422864613,1779544846000,-300.0,7.374e-05,2]
[422864614,1779544857000,-895.83,7.374e-05,2]
[422864615,1779544877000,-154.01264662,7.374e-05,2]
[422864616,1779544898000,-500.0,7.374e-05,2]
[422864617,1779544899000,-500.0,7.374e-05,2]
[422864618,1779544918000,-500.0,7.374e-05,2]
[422864619,1779544940000,-500.0,7.374e-05,2]
[422864621,1779544962000,-500.0,7.374e-05,2]
[422864620,1779544962000,-500.0,7.374e-05,2]
[422864622,1779544984000,-500.0,7.374e-05,2]
[422864623,1779544995000,-500.0,7.374e-05,2]
[422864625,1779544996000,-300.0,7.373e-05,2]
[422864626,1779544996000,-200.0,7.374e-05,2]
[422864624,1779544996000,-500.0,7.374e-05,2]
[422864627,1779545012000,-300.0,7.374e-05,2]
[422864628,1779545033000,-394.56821745,7.374e-05,2]
[422864629,1779545034000,-394.56821745,7.374e-05,2]
[422864631,1779545055000,-5156.0,6.926e-05,2]
[422864632,1779545067000,-744.13,6.926e-05,2]
[422864634,1779545088000,-744.13,6.926e-05,2]
[422864636,1779545110000,-300.0,6.926e-05,2]
[422864637,1779545111000,-556.89,6.926e-05,2]
[422864638,1779545112000,-556.89,6.925e-05,2]
[422864639,1779545130000,-605.91,6.925e-05,2]
[422864643,1779545150000,-307.40768673,6.925e-05,2]
[422864647,1779545245000,-270.97734828,6.441e-05,2]
[422864646,1779545245000,-152.0,5.958e-05,2]
[422864661,1779545348000,-500.0,6.924e-05,2]
[422864667,1779545348000,-500.0,6.924e-05,2]
[422864664,1779545348000,-500.0,6.924e-05,2]
[422864663,1779545348000,-500.0,6.924e-05,2]
[422864665,1779545348000,-500.0,6.924e-05,2]
[422864662,1779545348000,-500.0,6.924e-05,2]
[422864660,1779545348000,-500.0,6.924e-05,2]
[422864666,1779545348000,-500.0,6.924e-05,2]
[422864654,1779545348000,-500.0,6.924e-05,2]
[422864658,1779545348000,-500.0,6.924e-05,2]
[422864655,1779545348000,-500.0,6.924e-05,2]
[422864657,1779545348000,-500.0,6.924e-05,2]
[422864651,1779545348000,-192.50171875,6.441e-05,2]
[422864653,1779545348000,-154.95202416,6.924e-05,2]
[422864652,1779545348000,-500.0,6.924e-05,2]
[422864656,1779545348000,-500.0,6.924e-05,2]
[422864668,1779545348000,-471.43262533,6.924e-05,2]
[422864659,1779545348000,-500.0,6.924e-05,2]
[422864671,1779545348000,-1470.20768673,6.925e-05,2]
[422864669,1779545348000,-500.0,6.924e-05,2]
[422864686,1779545348000,-1470.20768673,6.925e-05,2]
[422864687,1779545348000,-1470.20768673,6.925e-05,2]
[422864683,1779545348000,-1470.20768673,6.925e-05,2]
[422864684,1779545348000,-1470.20768673,6.925e-05,2]
[422864685,1779545348000,-1470.20768673,6.925e-05,2]
[422864680,1779545348000,-1470.20768673,6.925e-05,2]
[422864679,1779545348000,-1470.20768673,6.925e-05,2]
[422864681,1779545348000,-1470.20768673,6.925e-05,2]
[422864677,1779545348000,-1470.20768673,6.925e-05,2]
[422864678,1779545348000,-1470.20768673,6.925e-05,2]
[422864676,1779545348000,-1470.20768673,6.925e-05,2]
[422864675,1779545348000,-1470.20768673,6.925e-05,2]
[422864674,1779545348000,-1470.20768673,6.925e-05,2]
[422864673,1779545348000,-1470.20768673,6.925e-05,2]
[422864672,1779545348000,-1470.20768673,6.925e-05,2]
[422864670,1779545348000,-1470.20768673,6.925e-05,2]
[422864682,1779545348000,-1470.20768673,6.925e-05,2]
[422864690,1779545349000,-1587.82430167,6.925e-05,2]
[422864688,1779545349000,-1587.82430167,6.925e-05,2]
[422864691,1779545349000,-1587.82430167,6.925e-05,2]
[422864689,1779545349000,-1587.82430167,6.925e-05,2]
[422864695,1779545349000,-1587.82430167,6.925e-05,2]
[422864693,1779545349000,-1587.82430167,6.925e-05,2]
[422864694,1779545349000,-1587.82430167,6.925e-05,2]
[422864696,1779545349000,-2235.16805542,6.925e-05,2]
[422864697,1779545349000,-9998.81394587,6.926e-05,2]
[422864692,1779545349000,-1587.82430167,6.925e-05,2]
[422864698,1779545354000,-69627.63486,6.926e-05,2]
[422864699,1779545359000,-14125.7350864,6.926e-05,2]
[422864739,1779545431000,-572.30858928,6.925e-05,2]
[422864746,1779545431000,-627.69141072,6.925e-05,2]
[422864749,1779545431000,-748.60856928,6.926e-05,2]
[422864868,1779545440000,-22571.99999999,6.926e-05,2]
[422864871,1779545441000,-1331.75750031,6.926e-05,2]
[422864896,1779545554000,-1000.0,6.825e-05,2]
[422864897,1779545565000,-1000.0,6.825e-05,2]
[422864967,1779546332000,-1184.96084138,5.938e-05,2]
[422864972,1779546447000,-259.4522771,5.879e-05,2]
[422864973,1779546453000,-4740.5477229,5.879e-05,2]
[422864974,1779546453000,-464.14355197,5.968e-05,2]
[422864977,1779546453000,-3970.98640398,5.998e-05,2]
[422864976,1779546453000,-300.0,5.997e-05,2]
[422864975,1779546453000,-1200.0,5.997e-05,2]
[422864979,1779546549000,-5000.0,5.938e-05,2]
[422864980,1779546549000,-165.849892,5.968e-05,2]
[422864989,1779546631000,-1707.14873027,5.908e-05,2]
[422865144,1779546641000,-393.11161667,6.245e-05,2]
[422865120,1779546641000,-300.0,6.166e-05,2]
[422865122,1779546641000,-300.0,6.166e-05,2]
[422865126,1779546641000,-300.0,6.166e-05,2]
[422865131,1779546641000,-300.0,6.166e-05,2]
[422865141,1779546641000,-500.0,6.245e-05,2]
[422865137,1779546641000,-477.34114189,6.245e-05,2]
[422865136,1779546641000,-500.0,6.245e-05,2]
[422865140,1779546641000,-500.0,6.245e-05,2]
[422865148,1779546641000,-500.0,6.245e-05,2]
[422865133,1779546641000,-500.0,6.245e-05,2]
[422865157,1779546641000,-3765.21836843,6.565e-05,2]
[422865150,1779546641000,-3472.55314035,6.246e-05,2]
[422865132,1779546641000,-502.23219048,6.245e-05,2]
[422865153,1779546641000,-600.0,6.288e-05,2]
[422865142,1779546641000,-379.45535758,6.245e-05,2]
[422865127,1779546641000,-300.0,6.166e-05,2]
[422865123,1779546641000,-300.0,6.166e-05,2]
[422865130,1779546641000,-300.0,6.166e-05,2]
[422865109,1779546641000,-289.01078893,5.968e-05,2]
[422865111,1779546641000,-300.0,6.045e-05,2]
[422865108,1779546641000,-3292.85126973,5.908e-05,2]
[422865116,1779546641000,-3229.63046211,6.146e-05,2]
[422865112,1779546641000,-735.0,6.045e-05,2]
[422865113,1779546641000,-1775.93026017,6.046e-05,2]
[422865114,1779546641000,-1775.93026017,6.046e-05,2]
[422865124,1779546641000,-300.0,6.166e-05,2]
[422865110,1779546641000,-1546.37268072,5.998e-05,2]
[422865117,1779546641000,-300.0,6.166e-05,2]
[422865118,1779546641000,-300.0,6.166e-05,2]
[422865121,1779546641000,-300.0,6.166e-05,2]
[422865119,1779546641000,-300.0,6.166e-05,2]
[422865129,1779546641000,-300.0,6.166e-05,2]
[422865125,1779546641000,-300.0,6.166e-05,2]
[422865128,1779546641000,-300.0,6.166e-05,2]
[422865115,1779546641000,-3229.63046211,6.146e-05,2]
[422865156,1779546641000,-3497.42441522,6.346e-05,2]
[422865138,1779546641000,-500.0,6.245e-05,2]
[422865154,1779546641000,-3497.42441522,6.346e-05,2]
[422865167,1779546641000,-1412.65604732,6.916e-05,2]
[422865175,1779546641000,-1412.65604732,6.916e-05,2]
[422865178,1779546641000,-1412.65604732,6.916e-05,2]
[422865176,1779546641000,-1412.65604732,6.916e-05,2]
[422865174,1779546641000,-1412.65604732,6.916e-05,2]
[422865182,1779546641000,-1412.65604732,6.916e-05,2]
[422865177,1779546641000,-1412.65604732,6.916e-05,2]
[422865184,1779546641000,-7099.28880313,6.917e-05,2]
[422865185,1779546641000,-17443.05056798,6.917e-05,2]
[422865180,1779546641000,-1412.65604732,6.916e-05,2]
[422865179,1779546641000,-1412.65604732,6.916e-05,2]
[422865183,1779546641000,-720.0,6.917e-05,2]
[422865181,1779546641000,-1412.65604732,6.916e-05,2]
[422865186,1779546641000,-1000.0,6.917e-05,2]
[422865187,1779546641000,-15051.00000001,6.917e-05,2]
[422865169,1779546641000,-1412.65604732,6.916e-05,2]
[422865168,1779546641000,-1412.65604732,6.916e-05,2]
[422865170,1779546641000,-843.23592134,6.916e-05,2]
[422865173,1779546641000,-1412.65604732,6.916e-05,2]
[422865145,1779546641000,-500.0,6.245e-05,2]
[422865149,1779546641000,-500.0,6.245e-05,2]
[422865143,1779546641000,-500.0,6.245e-05,2]
[422865146,1779546641000,-500.0,6.245e-05,2]
[422865172,1779546641000,-1412.65604732,6.916e-05,2]
[422865151,1779546641000,-3472.55314035,6.246e-05,2]
[422865134,1779546641000,-500.0,6.245e-05,2]
[422865139,1779546641000,-500.0,6.245e-05,2]
[422865147,1779546641000,-212.42490558,6.245e-05,2]
[422865159,1779546641000,-784.98972779,6.822e-05,2]
[422865158,1779546641000,-3765.21836843,6.565e-05,2]
[422865166,1779546641000,-1412.65604732,6.916e-05,2]
[422865171,1779546641000,-569.42012598,6.916e-05,2]
[422865135,1779546641000,-500.0,6.245e-05,2]
[422865163,1779546641000,-1412.65604732,6.916e-05,2]
[422865161,1779546641000,-348.0375268,6.852e-05,2]
[422865160,1779546641000,-1796.11700645,6.822e-05,2]
[422865165,1779546641000,-1412.65604732,6.916e-05,2]
[422865267,1779546643000,-2318.2818666,6.956e-05,2]
[422865271,1779546643000,-693.4273822,6.956e-05,2]
[422865253,1779546643000,-1418.9745,6.956e-05,2]
[422865250,1779546643000,-34.9922023,6.956e-05,2]
[422865248,1779546643000,-240.80726118,6.917e-05,2]
[422865269,1779546643000,-260.76375275,6.956e-05,2]
[422865330,1779546646000,-3339.58493945,6.956e-05,2]
[422865331,1779546646000,-2581.10673422,7.171e-05,2]
[422865332,1779546646000,-4833.708244,7.177e-05,2]
[422865335,1779546646000,-3320.63392905,7.348e-05,2]
[422865334,1779546646000,-4303.3387413,7.348e-05,2]
[422865333,1779546646000,-151.0,7.274e-05,2]
[422865338,1779546647000,-752.83,7.348e-05,2]
[422865337,1779546647000,-131.66231571,7.348e-05,2]
[422865339,1779546647000,-3688.3192393,6.886e-05,2]
[422865336,1779546647000,-28.82803079,7.348e-05,2]
[422865342,1779547267000,-500.0,6.154e-05,2]
[422865343,1779547287000,-1418.2255,6.154e-05,2]
[422865344,1779547307000,-500.0,6.154e-05,2]
[422865345,1779547327000,-500.0,6.154e-05,2]
[422865346,1779547348000,-653.57,6.154e-05,2]
[422865347,1779547368000,-500.0,6.154e-05,2]
[422865348,1779547388000,-500.0,6.154e-05,2]
[422865349,1779547409000,-361.03765906,6.154e-05,2]
[422865350,1779547428000,-500.0,6.154e-05,2]
[422865352,1779547449000,-500.0,6.154e-05,2]
[422865355,1779547585000,161.372686,2.754e-05,2]
[422865359,1779547586000,161.372686,3.979e-05,2]
[422865358,1779547586000,161.372686,3.673e-05,2]
[422865357,1779547586000,161.372686,3.367e-05,2]
[422865356,1779547586000,161.372686,3.06e-05,2]
[422865360,1779547587000,161.372686,4.285e-05,2]
[422865362,1779547587000,161.372686,4.897e-05,2]
[422865361,1779547587000,161.372686,4.591e-05,2]
[422865364,1779547610000,-161.372686,5.203e-05,2]
[422865365,1779547638000,-161.372686,5.509e-05,2]
[422865366,1779547638000,-161.46145297,5.531e-05,2]
[422865367,1779547663000,-15.28619813,5.531e-05,2]
[422865369,1779547716000,-500.0,6.154e-05,2]
[422865370,1779547736000,-500.0,6.154e-05,2]
[422865372,1779547757000,-895.83,6.154e-05,2]
[422865381,1779547759000,-412.49165618,6.619e-05,2]
[422865382,1779547759000,-1158.3779588,6.62e-05,2]
[422865380,1779547759000,-210.34573519,6.619e-05,2]
[422865379,1779547759000,-6551.623076,6.609e-05,2]
[422865378,1779547759000,-151.0,6.52e-05,2]
[422865374,1779547759000,-467.2743233,6.217e-05,2]
[422865383,1779547759000,-1158.3779588,6.62e-05,2]
[422865376,1779547759000,-300.0,6.342e-05,2]
[422865375,1779547759000,-1200.0,6.342e-05,2]
[422865373,1779547759000,-3104.17,6.154e-05,2]
[422865377,1779547759000,-6551.623076,6.343e-05,2]
[422865384,1779547759000,-1158.3779588,6.62e-05,2]
[422865393,1779547759000,-1158.3779588,6.62e-05,2]
[422865387,1779547759000,-1158.3779588,6.62e-05,2]
[422865397,1779547759000,-1058.3005632,6.62e-05,2]
[422865396,1779547759000,-1158.3779588,6.62e-05,2]
[422865394,1779547759000,-1158.3779588,6.62e-05,2]
[422865395,1779547759000,-1158.3779588,6.62e-05,2]
[422865392,1779547759000,-1158.3779588,6.62e-05,2]
[422865385,1779547759000,-1158.3779588,6.62e-05,2]
[422865389,1779547759000,-1158.3779588,6.62e-05,2]
[422865390,1779547759000,-1158.3779588,6.62e-05,2]
[422865386,1779547759000,-1158.3779588,6.62e-05,2]
[422865388,1779547759000,-1158.3779588,6.62e-05,2]
[422865391,1779547759000,-1158.3779588,6.62e-05,2]
[422865398,1779547763000,-192.74763232,6.62e-05,2]
[422865400,1779547763000,-1251.04819552,6.62e-05,2]
[422865401,1779547763000,-1251.04819552,6.62e-05,2]
[422865399,1779547763000,-1251.04819552,6.62e-05,2]
[422865402,1779547763000,-1251.04819552,6.62e-05,2]
[422865404,1779547763000,-1251.04819552,6.62e-05,2]
[422865405,1779547763000,-1462.76404397,6.62e-05,2]
[422865406,1779547763000,-3767.28718791,6.62e-05,2]
[422865403,1779547763000,-1251.04819552,6.62e-05,2]
[422865407,1779547777000,-500.0,6.62e-05,2]
[422865408,1779547777000,-6116.69162382,6.62e-05,2]
[422865409,1779547797000,-262.99947296,6.62e-05,2]
[422865410,1779547808000,-466.02717278,6.62e-05,2]
[422865435,1779547833000,-1166.7211725,6.62e-05,2]
[422865433,1779547833000,-1488.11177197,6.62e-05,2]
[422865434,1779547833000,-4303.07941793,6.62e-05,2]
[422865438,1779547833000,-39984.87735425,6.621e-05,2]
[422865437,1779547833000,-5000.0,6.62e-05,2]
[422865440,1779547833000,-274.57627493,6.621e-05,2]
[422865439,1779547833000,-893.90684644,6.621e-05,2]
[422865436,1779547833000,-5082.65881317,6.62e-05,2]
[422865533,1779547838000,-300.0,6.855e-05,2]
[422865531,1779547838000,-300.0,6.855e-05,2]
[422865527,1779547838000,-300.0,6.855e-05,2]
[422865535,1779547838000,-300.0,6.855e-05,2]
[422865537,1779547838000,-300.0,6.855e-05,2]
[422865543,1779547838000,-1648.91277728,6.855e-05,2]
[422865542,1779547838000,-600.0,6.855e-05,2]
[422865545,1779547838000,-4367.748717,7.227e-05,2]
[422865544,1779547838000,-4367.748717,6.935e-05,2]
[422865540,1779547838000,-300.0,6.855e-05,2]
[422865529,1779547838000,-300.0,6.855e-05,2]
[422865538,1779547838000,-300.0,6.855e-05,2]
[422865525,1779547838000,-300.0,6.855e-05,2]
[422865488,1779547838000,-389.66095028,6.621e-05,2]
[422865523,1779547838000,-300.0,6.855e-05,2]
[422865521,1779547838000,-300.0,6.855e-05,2]
[422865520,1779547838000,-300.0,6.855e-05,2]
[422865516,1779547838000,-300.0,6.855e-05,2]
[422865514,1779547838000,-1648.91277728,6.83e-05,2]
[422865512,1779547838000,-1648.91277728,6.805e-05,2]
[422865505,1779547838000,-175311.02042479,6.755e-05,2]
[422865507,1779547838000,-1648.91277728,6.78e-05,2]
[422865503,1779547838000,-1648.91277732,6.755e-05,2]
[422865501,1779547838000,-220940.43785669,6.621e-05,2]
[422865489,1779547838000,-78373.83146022,6.621e-05,2]
[422865546,1779547838000,-69.38446575,7.348e-05,2]
[422865522,1779547838000,-300.0,6.855e-05,2]
[422865548,1779547838000,-151.0,7.348e-05,2]
[422865518,1779547838000,-300.0,6.855e-05,2]
[422865563,1779547838000,-5040.22142121,8.13e-05,2]
[422865549,1779547838000,-151.0,7.348e-05,2]
[422865580,1779547838000,-501.53842224,8.219e-05,2]
[422865579,1779547838000,-509.94120264,8.219e-05,2]
[422865574,1779547838000,-386.69537798,8.219e-05,2]
[422865573,1779547838000,-501.16525891,8.219e-05,2]
[422865572,1779547838000,-500.0,8.219e-05,2]
[422865569,1779547838000,-500.0,8.219e-05,2]
[422865570,1779547838000,-512.0578181,8.219e-05,2]
[422865566,1779547838000,-500.0,8.219e-05,2]
[422865571,1779547838000,-321.01133525,8.219e-05,2]
[422865568,1779547838000,-501.8695967,8.219e-05,2]
[422865577,1779547838000,-475.81430595,8.219e-05,2]
[422865578,1779547838000,-500.0,8.219e-05,2]
[422865581,1779547838000,-503.36622058,8.219e-05,2]
[422865575,1779547838000,-506.38763795,8.219e-05,2]
[422865576,1779547838000,-500.0,8.219e-05,2]
[422865560,1779547838000,-4367.748717,7.811e-05,2]
[422865565,1779547838000,-502.64945717,8.219e-05,2]
[422865564,1779547838000,-1235.7561,8.219e-05,2]
[422865562,1779547838000,-5040.22142121,8.13e-05,2]
[422865561,1779547838000,-4367.748717,8.103e-05,2]
[422865559,1779547838000,-470.11230656,7.8e-05,2]
[422865553,1779547838000,-4367.748717,7.519e-05,2]
[422865555,1779547838000,-720.0,7.541e-05,2]
[422865551,1779547838000,-151.0,7.348e-05,2]
[422865558,1779547838000,-4571.29607945,7.739e-05,2]
[422865567,1779547838000,-500.0,8.219e-05,2]
[422865556,1779547838000,-4571.29607945,7.739e-05,2]
[422865627,1779547839000,-500.8442278,8.219e-05,2]
[422865622,1779547839000,-500.78504419,8.219e-05,2]
[422865623,1779547839000,-500.0,8.219e-05,2]
[422865620,1779547839000,-640.74553353,8.219e-05,2]
[422865617,1779547839000,-502.58182842,8.219e-05,2]
[422865619,1779547839000,-500.0,8.219e-05,2]
[422865615,1779547839000,-500.62042462,8.219e-05,2]
[422865618,1779547839000,-500.0,8.219e-05,2]
[422865614,1779547839000,-500.9796045,8.219e-05,2]
[422865613,1779547839000,-501.06286372,8.219e-05,2]
[422865616,1779547839000,-502.7212031,8.219e-05,2]
[422865630,1779547839000,-500.0,8.219e-05,2]
[422865632,1779547839000,-500.53785983,8.219e-05,2]
[422865624,1779547839000,-500.30522762,8.219e-05,2]
[422865629,1779547839000,-502.63679092,8.219e-05,2]
[422865625,1779547839000,-501.12076974,8.219e-05,2]
[422865634,1779547839000,-500.0,8.219e-05,2]
[422865628,1779547839000,-502.09701653,8.219e-05,2]
[422865631,1779547839000,-500.0,8.219e-05,2]
[422865626,1779547839000,-500.0,8.219e-05,2]
[422865635,1779547839000,-501.2872632,8.219e-05,2]
[422865636,1779547839000,-501.4016458,8.219e-05,2]
[422865644,1779547839000,-500.0,8.219e-05,2]
[422865647,1779547839000,-500.64541376,8.219e-05,2]
[422865621,1779547839000,-500.69119436,8.219e-05,2]
[422865645,1779547839000,-501.00904894,8.219e-05,2]
[422865633,1779547839000,-501.169022,8.219e-05,2]
[422865612,1779547839000,-500.40333456,8.219e-05,2]
[422865608,1779547839000,-502.97862732,8.219e-05,2]
[422865609,1779547839000,-501.62944094,8.219e-05,2]
[422865640,1779547839000,-500.0,8.219e-05,2]
[422865582,1779547839000,-504.4734919,8.219e-05,2]
[422865584,1779547839000,-501.90586945,8.219e-05,2]
[422865585,1779547839000,-500.34409101,8.219e-05,2]
[422865594,1779547839000,-500.47284106,8.219e-05,2]
[422865595,1779547839000,-501.25672195,8.219e-05,2]
[422865583,1779547839000,-501.643361,8.219e-05,2]
[422865588,1779547839000,-500.0,8.219e-05,2]
[422865587,1779547839000,-501.05436971,8.219e-05,2]
[422865593,1779547839000,-500.0,8.219e-05,2]
[422865589,1779547839000,-504.03112963,8.219e-05,2]
[422865586,1779547839000,-221.09518299,8.219e-05,2]
[422865590,1779547839000,-501.20120435,8.219e-05,2]
[422865591,1779547839000,-486.83100586,8.219e-05,2]
[422865592,1779547839000,-500.0,8.219e-05,2]
[422865597,1779547839000,-501.84995452,8.219e-05,2]
[422865607,1779547839000,-504.11004245,8.219e-05,2]
[422865596,1779547839000,-501.73366197,8.219e-05,2]
[422865598,1779547839000,-502.11164909,8.219e-05,2]
[422865600,1779547839000,-502.08940335,8.219e-05,2]
[422865603,1779547839000,-501.44378432,8.219e-05,2]
[422865606,1779547839000,-501.55499102,8.219e-05,2]
[422865599,1779547839000,-502.20469077,8.219e-05,2]
[422865602,1779547839000,-501.46710981,8.219e-05,2]
[422865604,1779547839000,-501.20543657,8.219e-05,2]
[422865605,1779547839000,-500.0,8.219e-05,2]
[422865610,1779547839000,-502.12033851,8.219e-05,2]
[422865611,1779547839000,-502.62131229,8.219e-05,2]
[422865641,1779547839000,-200.08654569,8.219e-05,2]
[422865601,1779547839000,-501.36050617,8.219e-05,2]
[422865639,1779547839000,-501.12176351,8.219e-05,2]
[422865674,1779547839000,-502.07808856,8.219e-05,2]
[422865678,1779547839000,-502.69,8.219e-05,2]
[422865676,1779547839000,-500.0,8.219e-05,2]
[422865704,1779547839000,-500.0,8.219e-05,2]
[422865672,1779547839000,-500.0,8.219e-05,2]
[422865679,1779547839000,-500.0,8.219e-05,2]
[422865675,1779547839000,-500.91292475,8.219e-05,2]
[422865682,1779547839000,-501.87909741,8.219e-05,2]
[422865681,1779547839000,-500.39661169,8.219e-05,2]
[422865680,1779547839000,-500.0,8.219e-05,2]
[422865688,1779547839000,-502.38670999,8.219e-05,2]
[422865689,1779547839000,-368.89913746,8.219e-05,2]
[422865686,1779547839000,-501.081977,8.219e-05,2]
[422865693,1779547839000,-164.02470756,8.219e-05,2]
[422865692,1779547839000,-503.89675225,8.219e-05,2]
[422865698,1779547839000,-178.8925743,8.219e-05,2]
[422865687,1779547839000,-500.0,8.219e-05,2]
[422865696,1779547839000,-151.5,8.219e-05,2]
[422865690,1779547839000,-500.0,8.219e-05,2]
[422865695,1779547839000,-189.85731787,8.219e-05,2]
[422865699,1779547839000,-500.93474042,8.219e-05,2]
[422865694,1779547839000,-151.5,8.219e-05,2]
[422865691,1779547839000,-508.0468424,8.219e-05,2]
[422865701,1779547839000,-503.12283231,8.219e-05,2]
[422865700,1779547839000,-502.67051564,8.219e-05,2]
[422865702,1779547839000,-500.0,8.219e-05,2]
[422865646,1779547839000,-501.26508614,8.219e-05,2]
[422865677,1779547839000,-500.0,8.219e-05,2]
[422865684,1779547839000,-500.0,8.219e-05,2]
[422865703,1779547839000,-501.12205853,8.219e-05,2]
[422865683,1779547839000,-500.0,8.219e-05,2]
[422865685,1779547839000,-500.0,8.219e-05,2]
[422865637,1779547839000,-501.54089256,8.219e-05,2]
[422865642,1779547839000,-500.0,8.219e-05,2]
[422865638,1779547839000,-501.16396198,8.219e-05,2]
[422865659,1779547839000,-501.59952013,8.219e-05,2]
[422865649,1779547839000,-498.74082403,8.219e-05,2]
[422865648,1779547839000,-500.0,8.219e-05,2]
[422865650,1779547839000,-502.97637886,8.219e-05,2]
[422865651,1779547839000,-500.0,8.219e-05,2]
[422865654,1779547839000,-500.85443273,8.219e-05,2]
[422865652,1779547839000,-365.80452602,8.219e-05,2]
[422865655,1779547839000,-501.26179018,8.219e-05,2]
[422865653,1779547839000,-500.49193785,8.219e-05,2]
[422865657,1779547839000,-500.0,8.219e-05,2]
[422865643,1779547839000,-500.0,8.219e-05,2]
[422865658,1779547839000,-501.72320948,8.219e-05,2]
[422865656,1779547839000,-501.55669434,8.219e-05,2]
[422865667,1779547839000,-169.458254,8.219e-05,2]
[422865671,1779547839000,-283.052523,8.219e-05,2]
[422865668,1779547839000,-500.89719437,8.219e-05,2]
[422865666,1779547839000,-500.0,8.219e-05,2]
[422865661,1779547839000,-500.84412399,8.219e-05,2]
[422865662,1779547839000,-501.36969682,8.219e-05,2]
[422865660,1779547839000,-500.59000113,8.219e-05,2]
[422865665,1779547839000,-500.0,8.219e-05,2]
[422865669,1779547839000,-501.07112523,8.219e-05,2]
[422865673,1779547839000,-501.4024381,8.219e-05,2]
[422865663,1779547839000,-500.0,8.219e-05,2]
[422865664,1779547839000,-503.49013076,8.219e-05,2]
[422865742,1779547840000,-500.0,8.219e-05,2]
[422865748,1779547840000,-393.01507182,8.219e-05,2]
[422865744,1779547840000,-500.0,8.219e-05,2]
[422865736,1779547840000,-501.16528798,8.219e-05,2]
[422865743,1779547840000,-151.5,8.219e-05,2]
[422865738,1779547840000,-501.71422671,8.219e-05,2]
[422865740,1779547840000,-501.29167151,8.219e-05,2]
[422865746,1779547840000,-151.5,8.219e-05,2]